[Event "Early-Titled-Tuesday-Blitz-January-30-2024"]
[Site "Chess.com"]
[Date "2024.01.30"]
[Round "3"]
[White "mitrabhaa"]
[Black "PepeCuenca"]
[Result "1-0"]
[WhiteElo "2911"]
[BlackElo "2680"]
[TimeControl "180+1"]
[EndTime "8:29:41 PST"]
[Termination "mitrabhaa won by resignation"]

1. Nf3 {[%clk 0:02:47.3]} 1... Nf6 {[%clk 0:02:58.8]} 2. d4 {[%clk 0:02:47.7]}
2... d5 {[%clk 0:02:58.4]} 3. Bf4 {[%clk 0:02:47.6]} 3... e6 {[%clk 0:02:52.5]}
4. e3 {[%clk 0:02:48.5]} 4... c5 {[%clk 0:02:52.6]} 5. Nbd2 {[%clk 0:02:44.8]}
5... Nc6 {[%clk 0:02:52.7]} 6. c3 {[%clk 0:02:40.3]} 6... Bd6 {[%clk 0:02:53]}
7. Ne5 {[%clk 0:02:39.8]} 7... Qc7 {[%clk 0:02:50.3]} 8. Ndf3 {[%clk 0:02:39]}
8... Nd7 {[%clk 0:02:46.8]} 9. Bb5 {[%clk 0:02:30.3]} 9... O-O {[%clk
0:02:42.3]} 10. Bxc6 {[%clk 0:02:21]} 10... bxc6 {[%clk 0:02:42]} 11. Qa4 {[%clk
0:02:21.6]} 11... Bb7 {[%clk 0:02:16.2]} 12. Nxd7 {[%clk 0:02:19.5]} 12... Qxd7
{[%clk 0:02:15.8]} 13. Bxd6 {[%clk 0:02:20]} 13... Qxd6 {[%clk 0:02:16.2]} 14.
Qa3 {[%clk 0:02:20.8]} 14... f6 {[%clk 0:01:56.8]} 15. O-O {[%clk 0:02:12.5]}
15... Rfd8 {[%clk 0:01:51.1]} 16. Qxc5 {[%clk 0:02:11.5]} 16... Qxc5 {[%clk
0:01:50.2]} 17. dxc5 {[%clk 0:02:12.4]} 17... e5 {[%clk 0:01:49.9]} 18. Nd2
{[%clk 0:02:09.4]} 18... Ba6 {[%clk 0:01:36.5]} 19. Rfe1 {[%clk 0:02:06.7]}
19... Rdb8 {[%clk 0:01:29.7]} 20. b4 {[%clk 0:02:05.1]} 20... Bd3 {[%clk
0:01:14.1]} 21. Nb3 {[%clk 0:02:04.3]} 21... Kf7 {[%clk 0:01:07.7]} 22. Na5
{[%clk 0:02:03.5]} 22... Rc8 {[%clk 0:01:07.8]} 23. Red1 {[%clk 0:02:02.9]}
23... e4 {[%clk 0:00:54.3]} 24. f3 {[%clk 0:02:01.6]} 24... Ke7 {[%clk
0:00:52.8]} 25. Kf2 {[%clk 0:02:01.4]} 25... f5 {[%clk 0:00:52.3]} 26. Nb3
{[%clk 0:02:00.7]} 26... Kd7 {[%clk 0:00:48.2]} 27. a4 {[%clk 0:01:59.8]} 27...
Rab8 {[%clk 0:00:47]} 28. Nd4 {[%clk 0:01:59.6]} 28... g6 {[%clk 0:00:43.8]} 29.
a5 {[%clk 0:01:59.2]} 29... a6 {[%clk 0:00:43.7]} 30. h4 {[%clk 0:01:59.6]}
30... Bc4 {[%clk 0:00:40.9]} 31. h5 {[%clk 0:01:58.6]} 31... Rf8 {[%clk
0:00:33.7]} 32. hxg6 {[%clk 0:01:57.9]} 32... hxg6 {[%clk 0:00:33.8]} 33. Rh1
{[%clk 0:01:58.8]} 33... Rh8 {[%clk 0:00:34.3]} 34. Kg3 {[%clk 0:01:58.8]} 34...
Rbe8 {[%clk 0:00:11.3]} 35. Kf4 {[%clk 0:01:58.4]} 35... exf3 {[%clk 0:00:11.4]}
36. gxf3 {[%clk 0:01:57.9]} 36... Rxh1 {[%clk 0:00:11.4]} 37. Rxh1 {[%clk
0:01:57.1]} 37... g5+ {[%clk 0:00:12]} 38. Kxg5 {[%clk 0:01:55.8]} 38... Rxe3
{[%clk 0:00:12.4]} 39. Rh7+ {[%clk 0:01:56.3]} 39... Kc8 {[%clk 0:00:12.2]} 40.
Nxc6 {[%clk 0:01:56.1]} 40... Rxc3 {[%clk 0:00:11.5]} 41. Ne7+ {[%clk
0:01:54.7]} 41... Kd8 {[%clk 0:00:11.8]} 42. Nxf5 {[%clk 0:01:53.4]} 42... Rxf3
{[%clk 0:00:10.8]} 43. Nd6 {[%clk 0:01:51.7]} 43... Bb5 {[%clk 0:00:07.7]} 44.
Nxb5 {[%clk 0:01:47.1]} 44... axb5 {[%clk 0:00:07.7]} 45. a6 {[%clk 0:01:48]}
45... Ra3 {[%clk 0:00:07.7]} 46. a7 {[%clk 0:01:48.1]} 46... Kc8 {[%clk
0:00:08.4]} 47. Kf5 {[%clk 0:01:47.8]} 47... d4 {[%clk 0:00:08.4]} 48. Ke4
{[%clk 0:01:45.8]} 48... d3 {[%clk 0:00:08.5]} 49. Rh8+ {[%clk 0:01:45.9]} 49...
Kb7 {[%clk 0:00:08.4]} 50. a8=Q+ {[%clk 0:01:46.2]} 50... Rxa8 {[%clk
0:00:08.4]} 51. Rxa8 {[%clk 0:01:47]} 51... Kxa8 {[%clk 0:00:08.9]} 52. Kxd3
{[%clk 0:01:47.5]} 1-0

[Event "Early-Titled-Tuesday-Blitz-January-30-2024"]
[Site "Chess.com"]
[Date "2024.01.30"]
[Round "3"]
[White "MFatigue"]
[Black "blitis"]
[Result "1-0"]
[WhiteElo "2470"]
[BlackElo "2611"]
[TimeControl "180+1"]
[EndTime "8:29:41 PST"]
[Termination "MFatigue won by resignation"]

1. e4 {[%clk 0:03:00.9]} 1... c5 {[%clk 0:02:59.7]} 2. a3 {[%clk 0:02:53.2]}
2... d5 {[%clk 0:02:56.8]} 3. exd5 {[%clk 0:02:53]} 3... Nf6 {[%clk 0:02:56.9]}
4. Bb5+ {[%clk 0:02:53]} 4... Nbd7 {[%clk 0:02:52.8]} 5. Nc3 {[%clk 0:02:35.2]}
5... a6 {[%clk 0:02:52.7]} 6. Bxd7+ {[%clk 0:02:35.6]} 6... Qxd7 {[%clk
0:02:41.9]} 7. Nf3 {[%clk 0:02:24.7]} 7... Nxd5 {[%clk 0:02:34.2]} 8. O-O {[%clk
0:02:25.2]} 8... b5 {[%clk 0:02:28]} 9. Ne4 {[%clk 0:02:18.5]} 9... e6 {[%clk
0:02:24.5]} 10. d4 {[%clk 0:02:16.1]} 10... c4 {[%clk 0:02:18.3]} 11. Ne5 {[%clk
0:02:12.6]} 11... Qc7 {[%clk 0:02:15.8]} 12. c3 {[%clk 0:02:05.7]} 12... Bb7
{[%clk 0:02:02.8]} 13. Re1 {[%clk 0:02:04.8]} 13... Be7 {[%clk 0:01:51]} 14. Qg4
{[%clk 0:02:01]} 14... O-O {[%clk 0:01:34.8]} 15. Bh6 {[%clk 0:01:48.5]} 15...
g6 {[%clk 0:01:34.5]} 16. Bxf8 {[%clk 0:01:26.6]} 16... Rxf8 {[%clk 0:01:32.9]}
17. Qg3 {[%clk 0:01:26.6]} 17... Nb6 {[%clk 0:01:10.6]} 18. Nxg6 {[%clk
0:01:14]} 18... Qxg3 {[%clk 0:01:00.2]} 19. Nxe7+ {[%clk 0:01:13.9]} 19... Kg7
{[%clk 0:00:59.2]} 20. hxg3 {[%clk 0:01:12.2]} 20... Re8 {[%clk 0:00:50.1]} 21.
Nd6 {[%clk 0:01:08]} 21... Rxe7 {[%clk 0:00:50]} 22. Nf5+ {[%clk 0:01:07.3]}
22... Kf6 {[%clk 0:00:50.4]} 23. Nxe7 {[%clk 0:01:07.4]} 23... Kxe7 {[%clk
0:00:51.3]} 24. a4 {[%clk 0:00:52.4]} 24... bxa4 {[%clk 0:00:47.4]} 25. Re5
{[%clk 0:00:47.5]} 25... f5 {[%clk 0:00:42.1]} 26. Ra5 {[%clk 0:00:40.7]} 26...
Kd6 {[%clk 0:00:39.8]} 27. R1xa4 {[%clk 0:00:41.2]} 27... Nxa4 {[%clk
0:00:39.1]} 28. Rxa4 {[%clk 0:00:42.1]} 28... Kd5 {[%clk 0:00:38.9]} 29. f3
{[%clk 0:00:41.7]} 29... Bc8 {[%clk 0:00:35.2]} 30. Kf2 {[%clk 0:00:41.1]} 30...
h6 {[%clk 0:00:34.3]} 31. Ke3 {[%clk 0:00:41.4]} 31... Bb7 {[%clk 0:00:34.7]}
32. Kf4 {[%clk 0:00:41.7]} 32... Bc8 {[%clk 0:00:35]} 33. Ra5+ {[%clk
0:00:41.1]} 33... Kd6 {[%clk 0:00:35]} 34. Rc5 {[%clk 0:00:38.8]} 34... Bb7
{[%clk 0:00:34.2]} 35. Rxc4 {[%clk 0:00:37.4]} 35... Bc6 {[%clk 0:00:33.4]} 36.
Rc5 {[%clk 0:00:35.3]} 36... Bb5 {[%clk 0:00:32.8]} 37. c4 {[%clk 0:00:35.9]}
37... Ba4 {[%clk 0:00:31.2]} 38. Ra5 {[%clk 0:00:35.8]} 1-0

[Event "Early-Titled-Tuesday-Blitz-January-30-2024"]
[Site "Chess.com"]
[Date "2024.01.30"]
[Round "3"]
[White "Heinza9"]
[Black "Hovik_Hayrapetyan"]
[Result "0-1"]
[WhiteElo "2323"]
[BlackElo "2770"]
[TimeControl "180+1"]
[EndTime "8:29:41 PST"]
[Termination "Hovik_Hayrapetyan won on time"]

1. e4 {[%clk 0:03:00.9]} 1... c5 {[%clk 0:02:58.7]} 2. Nf3 {[%clk 0:03:00.4]}
2... d6 {[%clk 0:02:58.7]} 3. Bb5+ {[%clk 0:03:00]} 3... Nd7 {[%clk 0:02:58.5]}
4. O-O {[%clk 0:02:59.1]} 4... a6 {[%clk 0:02:56.8]} 5. Be2 {[%clk 0:02:58.3]}
5... Ngf6 {[%clk 0:02:54.4]} 6. d3 {[%clk 0:02:58.5]} 6... b5 {[%clk 0:02:42.3]}
7. a4 {[%clk 0:02:54.9]} 7... Bb7 {[%clk 0:02:41]} 8. axb5 {[%clk 0:02:54.7]}
8... axb5 {[%clk 0:02:41.9]} 9. Rxa8 {[%clk 0:02:54.5]} 9... Qxa8 {[%clk
0:02:42.8]} 10. h3 {[%clk 0:02:51.1]} 10... g6 {[%clk 0:02:37.2]} 11. c3 {[%clk
0:02:50.2]} 11... Bg7 {[%clk 0:02:37.1]} 12. b4 {[%clk 0:02:46]} 12... c4 {[%clk
0:02:32.7]} 13. dxc4 {[%clk 0:02:45.8]} 13... bxc4 {[%clk 0:02:18.3]} 14. Bxc4
{[%clk 0:02:44.6]} 14... Nxe4 {[%clk 0:02:16.7]} 15. Qb3 {[%clk 0:01:52.6]}
15... O-O {[%clk 0:02:12.5]} 16. Re1 {[%clk 0:01:48]} 16... Nb6 {[%clk
0:01:57.8]} 17. Bf1 {[%clk 0:01:37.1]} 17... Rc8 {[%clk 0:01:50.4]} 18. c4
{[%clk 0:01:33.3]} 18... Qa4 {[%clk 0:01:41.2]} 19. Qe3 {[%clk 0:01:07.4]} 19...
Nxc4 {[%clk 0:01:34.2]} 20. Bxc4 {[%clk 0:01:02.9]} 20... Rxc4 {[%clk
0:01:35.1]} 21. Nbd2 {[%clk 0:00:58.1]} 21... Nxd2 {[%clk 0:01:25.9]} 22. Bxd2
{[%clk 0:00:56.6]} 22... Re4 {[%clk 0:01:17.1]} 23. Qb6 {[%clk 0:00:56.4]} 23...
Rxe1+ {[%clk 0:01:16.7]} 24. Bxe1 {[%clk 0:00:48.1]} 24... Qd7 {[%clk
0:01:16.3]} 25. Qe3 {[%clk 0:00:35.3]} 25... e5 {[%clk 0:01:12.6]} 26. Nd2
{[%clk 0:00:28.9]} 26... d5 {[%clk 0:01:11.7]} 27. f3 {[%clk 0:00:28.4]} 27...
d4 {[%clk 0:01:09.2]} 28. Qd3 {[%clk 0:00:27.1]} 28... f5 {[%clk 0:01:02.4]} 29.
Bg3 {[%clk 0:00:21.6]} 29... Qd5 {[%clk 0:00:58.2]} 30. Qb3 {[%clk 0:00:08.5]}
30... e4 {[%clk 0:00:53.4]} 31. fxe4 {[%clk 0:00:06.1]} 31... fxe4 {[%clk
0:00:54.3]} 32. Qxd5+ {[%clk 0:00:03.1]} 32... Bxd5 {[%clk 0:00:55.2]} 33. Kf2
{[%clk 0:00:02]} 33... e3+ {[%clk 0:00:54.2]} 0-1

[Event "Early-Titled-Tuesday-Blitz-January-30-2024"]
[Site "Chess.com"]
[Date "2024.01.30"]
[Round "3"]
[White "NastyaHn"]
[Black "SujanaLohani"]
[Result "1-0"]
[WhiteElo "2364"]
[BlackElo "2004"]
[TimeControl "180+1"]
[EndTime "8:29:41 PST"]
[Termination "NastyaHn won on time"]

1. Nc3 {[%clk 0:03:00.9]} 1... Nf6 {[%clk 0:00:56.9]} 2. Nf3 {[%clk 0:02:49.9]}
2... g6 {[%clk 0:00:56.5]} 3. e4 {[%clk 0:02:49.6]} 3... Bg7 {[%clk 0:00:57.4]}
4. d4 {[%clk 0:02:47.7]} 4... d6 {[%clk 0:00:57]} 5. Bg5 {[%clk 0:02:46.9]} 5...
O-O {[%clk 0:00:55.6]} 6. Qd2 {[%clk 0:02:40.6]} 6... c5 {[%clk 0:00:52.6]} 7.
dxc5 {[%clk 0:02:27.6]} 7... dxc5 {[%clk 0:00:43]} 8. Qxd8 {[%clk 0:02:18.4]}
8... Rxd8 {[%clk 0:00:39.3]} 9. e5 {[%clk 0:02:18.6]} 9... Ng4 {[%clk
0:00:33.3]} 10. Bxe7 {[%clk 0:02:04.3]} 10... Re8 {[%clk 0:00:29]} 11. Bxc5
{[%clk 0:01:56]} 11... Nxe5 {[%clk 0:00:19.5]} 12. Nxe5 {[%clk 0:01:51.3]} 12...
Bxe5 {[%clk 0:00:17.6]} 13. O-O-O {[%clk 0:01:43]} 13... Nc6 {[%clk 0:00:16.6]}
14. Bc4 {[%clk 0:01:21.9]} 14... Bf5 {[%clk 0:00:15.6]} 15. g3 {[%clk
0:01:07.1]} 15... Rac8 {[%clk 0:00:14.5]} 16. Bd5 {[%clk 0:00:45.2]} 16... b6
{[%clk 0:00:09.5]} 17. Be3 {[%clk 0:00:39.4]} 17... Nb4 {[%clk 0:00:09]} 18. Bb3
{[%clk 0:00:33.4]} 18... Bxc3 {[%clk 0:00:04.6]} 19. bxc3 {[%clk 0:00:33.4]}
19... Rxc3 {[%clk 0:00:03.3]} 20. Bd2 {[%clk 0:00:30.9]} 1-0

[Event "Early-Titled-Tuesday-Blitz-January-30-2024"]
[Site "Chess.com"]
[Date "2024.01.30"]
[Round "3"]
[White "simonachess"]
[Black "dianamirza"]
[Result "1-0"]
[WhiteElo "2363"]
[BlackElo "1998"]
[TimeControl "180+1"]
[EndTime "8:29:41 PST"]
[Termination "simonachess won on time"]

1. d4 {[%clk 0:02:50.4]} 1... Nf6 {[%clk 0:02:59.6]} 2. c4 {[%clk 0:02:49.8]}
2... c5 {[%clk 0:02:59.7]} 3. d5 {[%clk 0:02:49.9]} 3... b5 {[%clk 0:03:00]} 4.
cxb5 {[%clk 0:02:50.8]} 4... a6 {[%clk 0:03:00.4]} 5. bxa6 {[%clk 0:02:51.7]}
5... g6 {[%clk 0:02:57.8]} 6. Nc3 {[%clk 0:02:51.8]} 6... Bxa6 {[%clk
0:02:58.5]} 7. Nf3 {[%clk 0:02:51.9]} 7... Bg7 {[%clk 0:02:57.7]} 8. g3 {[%clk
0:02:52.3]} 8... d6 {[%clk 0:02:51.6]} 9. Bg2 {[%clk 0:02:51.9]} 9... O-O {[%clk
0:02:52.3]} 10. O-O {[%clk 0:02:51.8]} 10... Nbd7 {[%clk 0:02:52.1]} 11. Rb1
{[%clk 0:02:47.2]} 11... Qa5 {[%clk 0:02:50.5]} 12. Bd2 {[%clk 0:02:36.6]} 12...
Rfb8 {[%clk 0:02:46.6]} 13. a4 {[%clk 0:02:31]} 13... Rb7 {[%clk 0:02:08.8]} 14.
Qc2 {[%clk 0:01:13]} 14... Qc7 {[%clk 0:02:08.7]} 15. b3 {[%clk 0:01:05.5]}
15... Ng4 {[%clk 0:02:04.3]} 16. Rfe1 {[%clk 0:01:03.7]} 16... Rab8 {[%clk
0:02:01.3]} 17. Na2 {[%clk 0:01:03.4]} 17... Nge5 {[%clk 0:01:37.3]} 18. Nxe5
{[%clk 0:01:00.7]} 18... Nxe5 {[%clk 0:01:37.3]} 19. Bc3 {[%clk 0:01:01]} 19...
c4 {[%clk 0:01:29.6]} 20. b4 {[%clk 0:01:00.4]} 20... Rb6 {[%clk 0:01:20.5]} 21.
b5 {[%clk 0:00:59.2]} 21... Bc8 {[%clk 0:01:16.4]} 22. Ba5 {[%clk 0:00:56.3]}
22... Ng4 {[%clk 0:00:43.5]} 23. h3 {[%clk 0:00:52.9]} 23... Nf6 {[%clk
0:00:10.5]} 24. Nb4 {[%clk 0:00:51.9]} 24... Qc5 {[%clk 0:00:08.8]} 25. Bxb6
{[%clk 0:00:52.1]} 25... Rxb6 {[%clk 0:00:08.3]} 26. e4 {[%clk 0:00:50.6]} 26...
Nd7 {[%clk 0:00:04.8]} 27. Nc6 {[%clk 0:00:49]} 27... Kf8 {[%clk 0:00:02.7]} 28.
Rec1 {[%clk 0:00:49.1]} 28... Ne5 {[%clk 0:00:02.1]} 29. Kh2 {[%clk 0:00:43.9]}
29... Nd3 {[%clk 0:00:01.5]} 30. Rf1 {[%clk 0:00:43.9]} 1-0

[Event "Early-Titled-Tuesday-Blitz-January-30-2024"]
[Site "Chess.com"]
[Date "2024.01.30"]
[Round "3"]
[White "Shuvalov"]
[Black "IwkooO"]
[Result "0-1"]
[WhiteElo "2470"]
[BlackElo "2646"]
[TimeControl "180+1"]
[EndTime "8:29:45 PST"]
[Termination "IwkooO won by resignation"]

1. d4 {[%clk 0:02:56.8]} 1... Nf6 {[%clk 0:02:59.6]} 2. c4 {[%clk 0:02:56.4]}
2... e6 {[%clk 0:03:00.1]} 3. Nc3 {[%clk 0:02:56.2]} 3... Bb4 {[%clk 0:02:58.4]}
4. e3 {[%clk 0:02:56.1]} 4... O-O {[%clk 0:02:57.6]} 5. a3 {[%clk 0:02:54.2]}
5... Bxc3+ {[%clk 0:02:57.4]} 6. bxc3 {[%clk 0:02:55.1]} 6... d5 {[%clk
0:02:50.1]} 7. cxd5 {[%clk 0:02:50]} 7... Nxd5 {[%clk 0:02:49.7]} 8. Bd2 {[%clk
0:02:33.9]} 8... c5 {[%clk 0:02:49.2]} 9. Bd3 {[%clk 0:02:27.8]} 9... Nc6 {[%clk
0:02:47.8]} 10. Nf3 {[%clk 0:02:26.5]} 10... Qe7 {[%clk 0:02:45.5]} 11. e4
{[%clk 0:02:22]} 11... Nf6 {[%clk 0:02:44.6]} 12. e5 {[%clk 0:02:20]} 12... Nd5
{[%clk 0:02:44.1]} 13. Bxh7+ {[%clk 0:02:16.8]} 13... Kxh7 {[%clk 0:02:44.1]}
14. Ng5+ {[%clk 0:02:16.8]} 14... Kg6 {[%clk 0:02:38.1]} 15. h4 {[%clk
0:02:07.8]} 15... f5 {[%clk 0:02:12.6]} 16. h5+ {[%clk 0:01:27]} 16... Kh6
{[%clk 0:02:10.8]} 17. Nxe6+ {[%clk 0:00:58.5]} 17... f4 {[%clk 0:01:59.7]} 18.
Nxf8 {[%clk 0:00:52.8]} 18... Qxf8 {[%clk 0:02:00.6]} 19. g3 {[%clk 0:00:40.4]}
19... Qf5 {[%clk 0:01:58.5]} 20. Qf3 {[%clk 0:00:33.6]} 20... Be6 {[%clk
0:01:48.2]} 21. Rh4 {[%clk 0:00:21.9]} 21... cxd4 {[%clk 0:01:40.7]} 22. Bxf4+
{[%clk 0:00:20.3]} 22... Nxf4 {[%clk 0:01:40.5]} 23. Rxf4 {[%clk 0:00:21.2]}
23... Qxe5+ {[%clk 0:01:30.9]} 24. Kf1 {[%clk 0:00:21.8]} 24... Re8 {[%clk
0:01:14.7]} 25. Qd3 {[%clk 0:00:20.7]} 25... Qg5 {[%clk 0:01:01.7]} 26. cxd4
{[%clk 0:00:17.5]} 26... Bg8 {[%clk 0:00:56.4]} 27. Kg1 {[%clk 0:00:17.2]} 27...
Bh7 {[%clk 0:00:56.6]} 28. Qf3 {[%clk 0:00:15.9]} 28... Rd8 {[%clk 0:00:52]} 29.
Rd1 {[%clk 0:00:14.5]} 29... Rd5 {[%clk 0:00:47]} 30. Rd2 {[%clk 0:00:12.8]}
30... Rf5 {[%clk 0:00:47]} 31. Rxf5 {[%clk 0:00:11.3]} 31... Qxf5 {[%clk
0:00:47.9]} 32. Qxf5 {[%clk 0:00:11.2]} 32... Bxf5 {[%clk 0:00:48.3]} 33. d5
{[%clk 0:00:12.1]} 33... Ne5 {[%clk 0:00:48.7]} 34. d6 {[%clk 0:00:12.2]} 34...
Nf3+ {[%clk 0:00:49]} 35. Kf1 {[%clk 0:00:11.6]} 35... Nxd2+ {[%clk 0:00:49.9]}
36. Ke2 {[%clk 0:00:12.5]} 36... Nc4 {[%clk 0:00:50.3]} 37. g4 {[%clk
0:00:11.9]} 37... Bxg4+ {[%clk 0:00:50.1]} 38. f3 {[%clk 0:00:12.3]} 38... Bd7
{[%clk 0:00:49.4]} 0-1

[Event "Early-Titled-Tuesday-Blitz-January-30-2024"]
[Site "Chess.com"]
[Date "2024.01.30"]
[Round "3"]
[White "Siemba"]
[Black "EdmundPlayer"]
[Result "1-0"]
[WhiteElo "2567"]
[BlackElo "2271"]
[TimeControl "180+1"]
[EndTime "8:29:47 PST"]
[Termination "Siemba won by resignation"]

1. e4 {[%clk 0:03:00.9]} 1... c6 {[%clk 0:02:52.7]} 2. d4 {[%clk 0:03:00.9]}
2... d5 {[%clk 0:02:52.7]} 3. e5 {[%clk 0:03:01]} 3... c5 {[%clk 0:02:50.4]} 4.
dxc5 {[%clk 0:02:59.5]} 4... e6 {[%clk 0:02:46]} 5. a3 {[%clk 0:02:59.8]} 5...
Nc6 {[%clk 0:02:43.6]} 6. b4 {[%clk 0:03:00.1]} 6... f6 {[%clk 0:02:37]} 7. Bb2
{[%clk 0:02:59.1]} 7... fxe5 {[%clk 0:02:34.6]} 8. Nf3 {[%clk 0:02:56.7]} 8...
e4 {[%clk 0:02:11.4]} 9. Ne5 {[%clk 0:02:51.5]} 9... Nxe5 {[%clk 0:02:02.7]} 10.
Bxe5 {[%clk 0:02:52.4]} 10... Qg5 {[%clk 0:02:01.5]} 11. Qd4 {[%clk 0:02:47.2]}
11... Ne7 {[%clk 0:01:55.5]} 12. h4 {[%clk 0:02:47]} 12... Qc1+ {[%clk
0:01:26.1]} 13. Qd1 {[%clk 0:02:44]} 13... Qxd1+ {[%clk 0:01:26]} 14. Kxd1
{[%clk 0:02:44.9]} 14... Nc6 {[%clk 0:01:26.1]} 15. Bb5 {[%clk 0:02:43.8]} 15...
Bd7 {[%clk 0:01:24.2]} 16. Bxc6 {[%clk 0:02:43.4]} 16... Bxc6 {[%clk 0:01:18.4]}
17. h5 {[%clk 0:02:41.7]} 17... Rg8 {[%clk 0:01:10.5]} 18. Nd2 {[%clk
0:02:38.1]} 18... Ba4 {[%clk 0:01:05.3]} 19. Kc1 {[%clk 0:02:31.6]} 19... Be7
{[%clk 0:01:03.5]} 20. f3 {[%clk 0:02:27]} 20... exf3 {[%clk 0:00:54.3]} 21.
Nxf3 {[%clk 0:02:26.2]} 21... Bf6 {[%clk 0:00:53.8]} 22. Kb2 {[%clk 0:02:25.1]}
22... O-O-O {[%clk 0:00:51.8]} 23. Rae1 {[%clk 0:02:24.5]} 23... Rgf8 {[%clk
0:00:44.7]} 24. h6 {[%clk 0:02:21.3]} 24... gxh6 {[%clk 0:00:33.8]} 25. Rxh6
{[%clk 0:02:19.7]} 25... Bxe5+ {[%clk 0:00:30.4]} 26. Rxe5 {[%clk 0:02:19.3]}
26... Rg8 {[%clk 0:00:27.4]} 27. Rh2 {[%clk 0:02:12.8]} 27... Bd7 {[%clk
0:00:25.7]} 28. Nd4 {[%clk 0:02:10.3]} 28... Rde8 {[%clk 0:00:20.5]} 29. b5
{[%clk 0:02:05.3]} 29... Kc7 {[%clk 0:00:17.9]} 30. Rxh7 {[%clk 0:02:05]} 30...
Rxg2 {[%clk 0:00:16.8]} 31. c6 {[%clk 0:02:05.3]} 31... bxc6 {[%clk 0:00:15.1]}
32. bxc6 {[%clk 0:02:05.3]} 32... Rb8+ {[%clk 0:00:13]} 33. Kc3 {[%clk
0:01:55.4]} 33... Kd6 {[%clk 0:00:13.9]} 34. cxd7 {[%clk 0:01:52.5]} 34... Kxe5
{[%clk 0:00:13.1]} 35. Nc6+ {[%clk 0:01:52.4]} 35... Kd6 {[%clk 0:00:09.4]} 36.
Nxb8 {[%clk 0:01:52.9]} 36... Rg8 {[%clk 0:00:09.6]} 37. Na6 {[%clk 0:01:50.5]}
37... Rd8 {[%clk 0:00:07.8]} 38. Kd4 {[%clk 0:01:48.2]} 38... e5+ {[%clk
0:00:08.4]} 39. Kd3 {[%clk 0:01:48.3]} 39... Rxd7 {[%clk 0:00:08.2]} 40. Rh6+
{[%clk 0:01:47.4]} 40... Ke7 {[%clk 0:00:06.3]} 41. Nc5 {[%clk 0:01:47.9]} 41...
Rc7 {[%clk 0:00:05.2]} 42. Na6 {[%clk 0:01:32]} 42... Rc4 {[%clk 0:00:04.7]} 43.
Nb4 {[%clk 0:01:31.4]} 43... e4+ {[%clk 0:00:04.3]} 44. Kd2 {[%clk 0:01:31.5]}
44... d4 {[%clk 0:00:03.4]} 45. Rc6 {[%clk 0:01:27.6]} 45... Rxc6 {[%clk
0:00:02.5]} 46. Nxc6+ {[%clk 0:01:28.3]} 46... Kd6 {[%clk 0:00:02.2]} 47. Nxd4
{[%clk 0:01:28.9]} 47... Kc5 {[%clk 0:00:03.1]} 48. Kc3 {[%clk 0:01:27.2]} 48...
e3 {[%clk 0:00:03]} 49. Ne2 {[%clk 0:01:28]} 49... a5 {[%clk 0:00:03.3]} 50. Kb3
{[%clk 0:01:28.6]} 50... Kb5 {[%clk 0:00:03.1]} 51. c4+ {[%clk 0:01:29]} 51...
Kc5 {[%clk 0:00:03.5]} 52. Kc3 {[%clk 0:01:29.6]} 52... a4 {[%clk 0:00:03.9]}
53. Nf4 {[%clk 0:01:29.8]} 53... e2 {[%clk 0:00:03.7]} 54. Nxe2 {[%clk
0:01:29.8]} 54... Kd6 {[%clk 0:00:04.6]} 55. Kb4 {[%clk 0:01:30.3]} 1-0

[Event "Early-Titled-Tuesday-Blitz-January-30-2024"]
[Site "Chess.com"]
[Date "2024.01.30"]
[Round "3"]
[White "stasOR4ik"]
[Black "Ural_bogatyr"]
[Result "1/2-1/2"]
[WhiteElo "2414"]
[BlackElo "2538"]
[TimeControl "180+1"]
[EndTime "8:29:47 PST"]
[Termination "Game drawn by repetition"]

1. e4 {[%clk 0:02:55.4]} 1... e5 {[%clk 0:02:59.7]} 2. Nf3 {[%clk 0:02:55.3]}
2... Nc6 {[%clk 0:03:00.2]} 3. Bb5 {[%clk 0:02:55.5]} 3... a6 {[%clk 0:03:00.6]}
4. Ba4 {[%clk 0:02:55.9]} 4... Nf6 {[%clk 0:03:01.2]} 5. O-O {[%clk 0:02:55.5]}
5... Nxe4 {[%clk 0:03:01.4]} 6. Bxc6 {[%clk 0:02:54.5]} 6... dxc6 {[%clk
0:03:00.1]} 7. Re1 {[%clk 0:02:54.9]} 7... Nc5 {[%clk 0:02:53.1]} 8. d4 {[%clk
0:02:51]} 8... Ne6 {[%clk 0:02:52.9]} 9. Nxe5 {[%clk 0:02:45.9]} 9... Be7 {[%clk
0:02:51.4]} 10. c3 {[%clk 0:02:44.4]} 10... O-O {[%clk 0:02:51.2]} 11. Nd2
{[%clk 0:02:43.3]} 11... f6 {[%clk 0:02:50.3]} 12. Nd3 {[%clk 0:02:38.7]} 12...
Re8 {[%clk 0:02:49.7]} 13. Nf3 {[%clk 0:02:37.7]} 13... Nf8 {[%clk 0:02:47.5]}
14. Qb3+ {[%clk 0:02:24.8]} 14... Kh8 {[%clk 0:02:46.8]} 15. Bf4 {[%clk
0:02:16.7]} 15... Bd6 {[%clk 0:02:34.6]} 16. Rxe8 {[%clk 0:02:00.6]} 16... Qxe8
{[%clk 0:02:35.5]} 17. Re1 {[%clk 0:02:00.3]} 17... Qd7 {[%clk 0:02:31.6]} 18.
h3 {[%clk 0:01:52.7]} 18... b6 {[%clk 0:02:29.6]} 19. Bxd6 {[%clk 0:01:34.8]}
19... cxd6 {[%clk 0:02:21]} 20. Qxb6 {[%clk 0:01:31.5]} 20... a5 {[%clk
0:02:18.9]} 21. d5 {[%clk 0:01:14.1]} 21... Bb7 {[%clk 0:02:12.2]} 22. dxc6
{[%clk 0:00:59.8]} 22... Qxc6 {[%clk 0:02:10.2]} 23. Qxc6 {[%clk 0:00:59.6]}
23... Bxc6 {[%clk 0:02:11.1]} 24. Nd4 {[%clk 0:00:59.9]} 24... Bd5 {[%clk
0:02:10.9]} 25. a3 {[%clk 0:00:50.7]} 25... Bc4 {[%clk 0:02:04.2]} 26. Nf4
{[%clk 0:00:41.6]} 26... a4 {[%clk 0:01:53.1]} 27. Re7 {[%clk 0:00:36.7]} 27...
Ng6 {[%clk 0:01:38.5]} 28. Nxg6+ {[%clk 0:00:34.7]} 28... hxg6 {[%clk
0:01:39.4]} 29. Rd7 {[%clk 0:00:22]} 29... d5 {[%clk 0:01:39.4]} 30. Ne6 {[%clk
0:00:20.2]} 30... Rb8 {[%clk 0:01:36.9]} 31. Rd8+ {[%clk 0:00:15.8]} 31... Rxd8
{[%clk 0:01:36.1]} 32. Nxd8 {[%clk 0:00:16.7]} 32... Kg8 {[%clk 0:01:35.9]} 33.
Ne6 {[%clk 0:00:16]} 33... Kf7 {[%clk 0:01:34.6]} 34. Nd4 {[%clk 0:00:16]} 34...
Ke7 {[%clk 0:01:31.5]} 35. f4 {[%clk 0:00:15.9]} 35... Kd6 {[%clk 0:01:31.6]}
36. Kf2 {[%clk 0:00:16]} 36... Ba6 {[%clk 0:01:28.1]} 37. g3 {[%clk 0:00:15.7]}
37... Bc8 {[%clk 0:01:28.1]} 38. h4 {[%clk 0:00:15.5]} 38... Kc5 {[%clk
0:01:28.6]} 39. Ke3 {[%clk 0:00:15.8]} 39... Kc4 {[%clk 0:01:28.7]} 40. Kd2
{[%clk 0:00:15.3]} 40... Bd7 {[%clk 0:01:26.5]} 41. Nc2 {[%clk 0:00:11.3]} 41...
Kb3 {[%clk 0:01:24.6]} 42. Kc1 {[%clk 0:00:10.5]} 42... Kc4 {[%clk 0:01:24.9]}
43. Kd2 {[%clk 0:00:07.3]} 43... Be6 {[%clk 0:01:22.5]} 44. Nd4 {[%clk
0:00:05.8]} 44... Bd7 {[%clk 0:01:22.4]} 45. Kc2 {[%clk 0:00:04.2]} 45... Bg4
{[%clk 0:01:19]} 46. Kd2 {[%clk 0:00:03.8]} 46... Bd7 {[%clk 0:01:16.7]} 1/2-1/2